bitfinex/quotes_ETHUSD_20240618
["timestamp","ask_amount","ask_price","bid_price","bid_amount"]
[1718733192840,0.60569503,3412.7,3412.5,2.93039]
[1718733192999,0.60500828,3412.6,3412.5,2.93039]
[1718733193341,0.60500828,3412.7,3412.5,2.93039]
[1718733193540,10.91174172,3412.9,3411.9,2.9309]
[1718733193541,2.93061,3412.3,3411.9,2.9309]
[1718733193836,2.93061,3412.3,3411.7,2.4743]
[1718733193837,2.93047,3412.5,3412.1,2.93073]
[1718733194043,2.93052,3412.4,3412.1,2.93073]
[1718733194605,2.93052,3412.4,3412.0,2.93081]
[1718733195033,2.93098,3411.9,3411.3,2.396151]
[1718733195239,2.93091,3411.9,3410.7,4.5354]
[1718733195442,0.60500828,3412.1,3411.4,2.93126]
[1718733195603,3.53582828,3412.1,3411.6,2.9311]
[1718733195803,7.67500828,3412.2,3411.9,2.93083]
[1718733196148,7.67500828,3412.2,3411.1,2.93152]
[1718733196149,7.07,3412.2,3411.7,2.93103]
[1718733196499,7.07,3412.2,3411.5,2.93117]
[1718733196707,7.07,3412.2,3412.1,2.93074]
[1718733196916,3.53539828,3412.6,3412.1,2.93074]
[1718733197118,2.93041,3412.5,3412.1,2.93074]
[1718733197426,2.93033,3412.6,3412.2,2.93065]
[1718733197753,2.93073,3412.2,3411.8,2.93099]
[1718733197940,3.53532828,3412.6,3411.8,5.8619]
[1718733198129,2.9307,3412.2,3411.6,2.93117]
[1718733198331,0.60500828,3412.5,3412.1,2.93074]
[1718733198332,3.53541828,3412.5,3412.1,2.93074]
[1718733198532,2.93041,3412.5,3412.1,2.93074]
[1718733199128,2.93049,3412.4,3411.7,2.93108]
[1718733199336,2.93049,3412.4,3412.0,2.93076]
[1718733199658,2.93028,3412.7,3411.8,2.93093]
[1718733199863,2.93028,3412.7,3412.3,2.93049]
[1718733200688,2.93047,3412.5,3412.0,2.93082]
[1718733200860,7.07,3412.8,3412.5,2.93039]
[1718733201059,7.07,3412.8,3412.4,2.93045]
[1718733201234,10.00014,3412.8,3412.4,2.93045]
[1718733201762,2.93033,3412.6,3412.2,2.93065]
[1718733202344,10.00015,3412.8,3412.3,2.9305]
[1718733202958,10.00015,3412.8,3412.6,2.93024]
[1718733202959,7.07,3412.8,3412.6,2.93024]
[1718733203331,2.9298,3413.2,3412.6,2.93024]
[1718733204089,2.9298,3413.2,3412.1,2.103]
[1718733204380,2.92981,3413.2,3412.8,2.9301]
[1718733204772,10.60472828,3413.3,3412.8,2.93008]
[1718733205076,2.92985,3413.2,3412.8,2.93008]
[1718733205276,2.92989,3413.1,3412.7,2.93022]
[1718733205836,7.67500828,3413.3,3412.4,2.93041]
[1718733206042,7.67500828,3413.3,3412.2,2.93064]
[1718733206043,2.93033,3412.6,3412.2,2.93064]
[1718733206441,2.93058,3412.3,3412.0,2.93082]
[1718733206687,2.93043,3412.5,3411.8,2.93099]
[1718733206851,2.93043,3412.5,3411.6,3.5248739]
[1718733206852,2.9308,3412.1,3411.6,3.5248739]
[1718733207053,2.9308,3412.1,3411.6,2.93116]
[1718733207579,2.9308,3412.1,3411.8,2.93099]
[1718733207791,2.93058,3412.3,3412.0,2.93083]
[1718733208137,2.93057,3412.4,3411.9,2.93091]
[1718733208576,2.93072,3412.2,3411.9,2.93091]
[1718733209882,2.93041,3412.5,3411.8,2.93099]
[1718733210185,2.93032,3412.6,3412.3,2.93056]
[1718733210775,2.93023,3412.7,3412.4,2.93048]
[1718733210987,7.07,3412.8,3412.0,2.93082]
[1718733211173,2.93032,3412.6,3412.1,2.93072]
[1718733211375,2.93032,3412.6,3412.2,2.93064]
[1718733211573,10.00016,3412.8,3412.4,2.93046]
[1718733211747,10.00016,3412.8,3412.3,2.9305]
[1718733212156,2.93027,3412.7,3412.1,3.223792]
[1718733212461,2.9304,3412.5,3412.2,2.93064]
[1718733212662,2.93033,3412.6,3412.3,2.93056]
[1718733213070,10.00022,3412.8,3412.4,2.93048]
[1718733213386,10.00022,3412.8,3412.4,2.93046]
[1718733213545,2.93025,3412.7,3412.3,2.93055]
[1718733214153,2.93025,3412.7,3412.4,2.93048]
[1718733214348,2.93046,3412.5,3412.2,2.93065]
[1718733214550,2.93046,3412.5,3411.7,0.3470879]
[1718733214551,2.93077,3412.1,3411.8,2.93091]
[1718733215388,2.93063,3412.3,3411.8,2.93091]
[1718733215592,2.93067,3412.2,3411.8,2.93091]
[1718733217203,2.93115,3411.7,3411.2,2.93149]
[1718733217360,5.18726,3412.4,3411.2,2.93146]
[1718733217361,2.93123,3411.6,3411.2,2.93146]
[1718733217691,7.07,3412.1,3411.0,2.93169]
[1718733217692,2.9315,3411.3,3411.0,2.93169]
[1718733218379,2.93134,3411.4,3411.1,2.93158]
[1718733218689,2.93147,3411.3,3411.0,2.93169]
[1718733219487,2.93132,3411.5,3411.1,2.93155]
[1718733219665,2.93139,3411.4,3411.1,2.93155]
[1718733220011,2.93146,3411.3,3410.6,2.93199]
[1718733220219,2.93165,3411.1,3410.7,2.93194]
[1718733220372,2.93134,3411.5,3410.9,2.93169]
[1718733220566,2.93148,3411.3,3410.9,2.93169]
[1718733220769,2.93156,3411.2,3410.9,2.93169]
[1718733222397,0.60286004,3411.3,3411.1,2.93159]
[1718733222613,0.60286004,3411.3,3410.9,2.93169]
[1718733222614,2.93143,3411.3,3410.9,2.9317]
[1718733223406,2.93143,3411.3,3411.0,2.93166]
[1718733223970,3.53429004,3411.3,3411.0,2.93166]
[1718733224168,0.60286004,3411.2,3410.5,2.9321]
[1718733224403,2.93162,3411.1,3410.6,2.93202]
[1718733224608,2.93162,3411.1,3410.8,2.93186]
[1718733225492,3.53438004,3411.2,3410.9,2.93175]
[1718733226420,0.60286004,3411.2,3411.0,2.93168]
[1718733227692,3.53440004,3411.2,3410.9,2.93177]
[1718733228091,0.60286004,3411.1,3410.9,2.93177]
[1718733228285,2.93177,3410.9,3410.5,3.747693]
[1718733228499,2.93177,3410.9,3410.6,2.93196]
[1718733228703,3.53463004,3410.9,3410.6,2.93196]
[1718733229083,0.60286004,3410.9,3410.8,5.86372]
[1718733229330,0.60286004,3411.1,3410.9,2.93177]
[1718733229525,0.60286004,3411.1,3411.0,2.93169]
[1718733230418,0.60286004,3411.1,3410.8,2.93184]
[1718733230768,0.60286004,3411.1,3410.9,2.93175]
[1718733230933,0.60286004,3411.1,3411.0,2.93169]
[1718733232334,3.83581006,3411.2,3410.8,5.86364]
[1718733232508,0.60402245,3410.9,3410.8,2.93178]
[1718733232832,0.60402245,3411.0,3410.9,2.93177]
[1718733233045,0.60402245,3411.0,3410.9,3.41518672]
[1718733233256,0.60402245,3411.0,3410.9,6.34695672]
[1718733233532,0.60402245,3411.1,3410.9,3.41518672]
[1718733234131,0.60402245,3411.1,3411.0,2.93169]
[1718733234336,0.60402245,3411.1,3411.0,3.49956243]
[1718733236838,0.90429006,3411.1,3410.9,0.48341672]
[1718733237044,0.90429006,3411.1,3410.8,2.93183]
[1718733237045,0.60383375,3411.0,3410.8,2.93183]
[1718733237340,0.60389464,3410.9,3410.8,2.93183]
[1718733238847,0.60389464,3411.0,3410.8,2.93183]
[1718733239322,0.60389464,3410.9,3410.8,2.93183]
[1718733239912,0.60389464,3411.0,3410.8,2.93183]
[1718733240342,0.60389464,3411.0,3410.7,2.93188]
[1718733240641,0.60389464,3410.9,3410.7,2.93188]
[1718733241108,0.60389464,3410.9,3410.8,2.93186]
[1718733241312,0.60389464,3411.0,3410.8,3.518234]
[1718733241851,2.93194,3410.8,3410.4,2.93213]
[1718733241991,0.60410766,3410.7,3409.9,2.3986]
[1718733242196,2.9323,3410.3,3410.0,3.465668]
[1718733242434,3.53640766,3410.3,3410.0,3.465668]
[1718733242746,0.60410766,3410.3,3410.1,2.93246]
[1718733243932,0.60410766,3410.3,3409.9,2.93262]
[1718733244224,0.60410766,3410.2,3409.8,2.9327]
[1718733244736,2.93247,3410.1,3409.8,2.9327]
[1718733244898,0.07651252,3410.0,3409.8,2.9327]
[1718733245099,3.53657766,3410.1,3409.8,2.9327]
[1718733245938,3.61317616,3410.0,3409.5,5.2787]
[1718733246248,2.93278,3409.8,3409.5,2.93297]
[1718733247294,0.60410766,3409.9,3409.5,2.93297]
[1718733247497,0.37299336,3410.1,3409.8,2.93272]
[1718733247498,0.60410766,3410.1,3409.8,2.93272]
[1718733247696,0.0765149,3410.3,3410.1,2.93246]
[1718733248002,10.07,3410.8,3410.5,2.93212]
[1718733248003,0.60410766,3410.6,3410.5,2.93212]
[1718733248204,3.68061048,3410.7,3410.0,2.103]
[1718733248447,2.93222,3410.4,3410.1,2.93244]
[1718733248748,3.61265048,3410.6,3410.5,2.93212]
[1718733248749,0.60410766,3410.6,3410.5,2.93212]
[1718733249045,3.60410766,3410.7,3410.5,2.93212]
[1718733249249,6.53607766,3410.7,3410.3,2.93223]
[1718733249395,0.07650106,3410.6,3410.1,3.972016]
[1718733249594,0.07650106,3410.6,3410.0,2.103]
[1718733249595,0.60410766,3410.7,3410.5,2.93212]
[1718733249840,0.68060872,3410.7,3410.5,2.93212]
[1718733250248,0.98079112,3410.8,3410.6,2.93203]
[1718733250401,0.0764953,3410.9,3410.8,2.93186]
[1718733250600,0.68013381,3411.0,3410.8,2.93186]
[1718733250849,0.60363851,3411.1,3410.7,2.93194]
[1718733251052,2.93179,3410.9,3410.5,2.93209]
[1718733251212,3.53565851,3410.7,3410.3,2.93228]
[1718733251418,0.90429006,3410.8,3409.7,5.18873]
[1718733251758,0.60377642,3410.7,3410.6,2.93203]
[1718733251902,0.60377642,3410.7,3410.6,5.86406]
[1718733251903,0.0764987,3410.7,3410.6,5.86406]
[1718733252104,0.60377642,3410.8,3410.7,5.86388]
[1718733252105,0.68027512,3410.8,3410.7,5.86388]
[1718733252307,0.60377642,3410.9,3410.8,5.86372]
[1718733252549,0.60377642,3411.0,3410.9,5.86354]
[1718733252732,0.60377642,3411.0,3410.9,9.7560488]
[1718733252903,0.60377642,3411.1,3411.0,5.86338]
[1718733253109,0.68026195,3411.1,3411.0,5.86338]
[1718733253931,0.68026195,3411.1,3411.0,2.93169]
[1718733254135,0.98077559,3411.1,3410.9,2.93171]
[1718733254639,0.60407194,3411.0,3410.9,2.93171]
[1718733255506,0.60407194,3411.0,3410.9,5.86348]
[1718733255718,0.68055747,3411.1,3411.0,2.93169]
[1718733256047,0.68055747,3411.1,3410.7,2.9319]
[1718733256048,2.9317,3411.0,3410.7,2.93194]
[1718733256207,0.68075291,3410.9,3410.7,2.93194]
[1718733256408,0.60426437,3410.8,3410.7,2.93194]
[1718733256825,3.91467509,3410.9,3410.0,2.93253]
[1718733257039,0.90639655,3410.7,3410.6,2.93202]
[1718733257254,0.90639655,3410.8,3410.5,2.93212]
[1718733257564,0.98936135,3410.7,3410.4,2.93213]
[1718733257725,0.60398874,3410.5,3410.4,2.93213]
[1718733258462,0.90639655,3410.6,3410.4,2.93213]
[1718733258764,0.98936154,3410.6,3410.5,5.86424]
[1718733258944,0.90639655,3410.6,3410.5,8.79636]
[1718733259149,0.98934947,3410.7,3410.6,2.93203]
[1718733259456,0.90639655,3410.7,3410.6,5.86406]
[1718733260328,1.20572008,3410.8,3410.7,5.86388]
[1718733260531,1.28873158,3410.9,3410.8,5.86372]
[1718733260724,1.28870858,3410.9,3410.2,3.49382133]
[1718733260925,0.60461686,3410.4,3410.2,3.49382133]
[1718733261120,0.60461686,3410.4,3410.3,0.34938213]
[1718733261367,0.90692529,3410.5,3410.4,2.9322]
[1718733261662,0.98996459,3410.5,3410.4,5.8644]
[1718733261868,0.90692529,3410.5,3410.4,5.8644]
[1718733262166,0.98996459,3410.5,3410.4,5.8644]
[1718733262335,0.99031912,3410.5,3410.4,9.76735935]
[1718733262531,0.90727982,3410.5,3410.4,9.76735935]
[1718733262736,0.90727982,3410.6,3410.5,5.86424]
[1718733264073,1.59462956,3410.6,3410.5,9.86416628]
[1718733264254,0.98995649,3410.6,3410.5,9.86416628]
[1718733264671,0.90696708,3410.7,3410.6,5.86406]
[1718733264973,0.98994945,3410.7,3410.6,9.78248863]
[1718733265134,0.90696708,3410.8,3410.7,8.79582]
[1718733265339,0.08293281,3410.8,3410.7,8.79582]
[1718733265567,0.08293281,3410.8,3410.7,10.40095749]
[1718733265568,0.68762584,3410.8,3410.7,10.40095749]
[1718733266235,0.08293281,3410.8,3410.7,10.40095749]
[1718733266441,0.68760865,3410.8,3410.7,10.40095749]
[1718733266958,0.60467584,3410.8,3410.7,10.40095749]
[1718733267365,0.60467584,3410.8,3410.7,13.33289749]
[1718733267639,1.51164292,3411.2,3411.1,2.9316]
[1718733267851,1.20572008,3411.5,3411.2,11.72604]
[1718733267852,0.60467584,3411.3,3411.2,11.72604]
[1718733268050,0.08280828,3411.4,3411.3,8.79429]
[1718733268231,0.90696708,3411.6,3411.2,4.314414]
[1718733268232,0.60467584,3411.6,3411.5,8.79378]
[1718733268638,0.90696708,3411.7,3411.6,8.79351]
[1718733268882,0.60450172,3411.8,3411.7,8.79327]
[1718733269254,7.97696708,3412.0,3411.6,4.338999]
[1718733269255,0.60450172,3411.9,3411.8,8.793]
[1718733270168,0.60450172,3412.3,3412.2,5.86132]
[1718733270377,0.90696708,3412.4,3412.2,5.86132]
[1718733270378,0.60450172,3412.4,3412.3,8.79171]
[1718733270759,0.60450172,3412.5,3412.4,8.79144]
[1718733270989,0.60450172,3412.5,3412.4,5.86096]
[1718733271299,1.56957331,3412.8,3412.6,2.93031]
[1718733271591,1.56957331,3412.8,3412.7,2.93023]
[1718733271792,0.36385323,3412.8,3412.7,2.93023]
[1718733271990,1.56957331,3412.8,3412.7,2.93023]
[1718733272210,1.5099543,3413.0,3412.7,2.93023]
[1718733272211,1.20572008,3412.9,3412.7,2.93023]
[1718733272692,0.90558025,3412.8,3412.7,2.93023]
[1718733272857,0.90558025,3412.8,3412.4,2.93041]
[1718733272858,4.13588008,3412.8,3412.4,2.93041]
[1718733273053,0.60364403,3412.5,3412.4,2.93041]
[1718733273865,0.98192324,3412.7,3412.5,2.9304]
[1718733274071,0.07645719,3412.6,3412.5,2.9304]
[1718733274401,0.67980856,3412.7,3412.5,2.9304]
[1718733274600,0.60335137,3412.7,3412.5,2.9304]
[1718733274825,0.98192324,3412.7,3411.7,5.21534]
[1718733275018,0.60323808,3412.3,3412.1,2.93073]
[1718733275293,0.67969527,3412.3,3412.0,2.93082]
[1718733275792,0.60323808,3412.2,3411.8,2.93099]
[1718733276015,0.60323808,3412.2,3411.9,2.93091]
[1718733276214,0.60323808,3412.3,3412.1,2.93074]
[1718733276389,0.60323808,3412.2,3412.1,2.93074]
[1718733276596,0.60323808,3412.2,3411.8,2.931]
[1718733276802,0.60323808,3412.1,3411.8,2.931]
[1718733277002,0.67969527,3412.1,3411.8,2.931]
[1718733277325,2.931,3411.9,3411.6,2.93114]
[1718733277530,0.60323808,3412.0,3411.7,2.93102]
[1718733277810,0.67970997,3412.0,3411.7,2.93102]
[1718733278691,0.07647189,3412.0,3411.9,2.93091]
[1718733279017,0.67970997,3412.1,3412.0,2.93083]
[1718733279316,0.60323808,3412.2,3412.0,2.93083]
[1718733279712,0.60323808,3412.2,3412.1,2.93074]
[1718733279897,0.67970459,3412.3,3412.2,2.93066]
[1718733280093,0.60323808,3412.3,3412.2,2.93066]
[1718733280295,0.60323808,3412.3,3412.1,2.93073]
[1718733280821,0.60323808,3412.3,3412.2,2.93066]
[1718733281382,0.67970459,3412.3,3412.2,2.93066]
[1718733281610,0.60323808,3412.3,3412.2,2.93066]
[1718733282183,0.60323808,3412.4,3412.2,2.93066]
[1718733282788,0.67881387,3412.4,3412.3,5.86114]
[1718733282983,0.60234736,3412.5,3412.4,2.93048]
[1718733283309,0.67880493,3412.6,3412.5,2.9304]
[1718733283528,0.67880493,3412.6,3412.5,5.8608]
[1718733283696,7.67234736,3412.8,3412.6,2.93031]
[1718733283899,7.07,3412.8,3412.7,2.93023]
[1718733285580,7.07,3412.8,3412.5,2.93033]
[1718733286517,10.00015,3412.8,3412.4,2.93046]
[1718733287783,2.93023,3412.7,3412.4,2.93046]
[1718733288405,2.93032,3412.6,3412.0,2.93074]
[1718733288608,2.93032,3412.6,3412.2,2.93064]
[1718733288609,2.93046,3412.5,3412.2,2.93064]
[1718733289388,2.9307,3412.2,3411.8,2.93093]
[1718733289589,2.9306,3412.3,3411.3,2.93138]
[1718733289789,2.9306,3412.3,3411.4,2.93126]
[1718733289790,2.93089,3412.0,3411.4,2.93126]
[1718733290016,5.8618,3412.0,3411.6,2.93112]
[1718733290333,2.93076,3412.1,3411.7,2.93104]
[1718733290620,2.93083,3412.0,3411.7,2.93104]
[1718733290833,2.93083,3412.0,3411.6,2.93115]
[1718733291038,2.93094,3411.9,3411.5,2.93124]
[1718733291565,2.93094,3411.9,3411.6,2.93116]
[1718733292849,2.93094,3411.9,3411.4,2.93134]
[1718733292850,2.93109,3411.7,3411.4,2.93134]
[1718733293006,0.60234736,3411.9,3411.5,2.93125]
[1718733293207,0.60234736,3411.8,3411.5,2.93125]
[1718733293439,0.60234736,3411.8,3411.4,2.93133]
[1718733293646,3.53347736,3411.7,3411.4,2.93133]
[1718733294209,0.07647876,3411.6,3411.4,2.93133]
[1718733295415,3.61000612,3411.6,3411.3,2.93143]
[1718733295633,0.60234736,3411.6,3411.4,2.93128]
[1718733295806,0.60234736,3411.7,3411.5,2.93125]
[1718733296005,0.67882545,3411.7,3411.5,2.93125]
[1718733297238,3.60991545,3411.7,3411.4,2.93133]
[1718733297546,0.07647809,3411.6,3411.4,2.93133]
[1718733297847,0.07647763,3411.6,3411.4,2.93133]
[1718733298048,0.67882499,3411.6,3411.4,2.93133]
[1718733299746,0.67882499,3411.6,3411.2,0.529717]
[1718733300117,0.60234736,3411.6,3411.2,0.529717]
[1718733300316,0.60234736,3411.6,3411.4,2.93134]
[1718733300623,0.07647763,3411.6,3411.4,2.93134]
[1718733301039,0.67882499,3411.6,3411.4,2.93134]
[1718733302255,0.67882499,3411.6,3410.9,2.9317]
[1718733302444,2.9316,3411.2,3410.9,2.93175]
[1718733302948,3.53480958,3411.2,3410.9,2.93175]
[1718733303150,0.07648562,3411.1,3410.9,2.93175]
[1718733303457,0.60320958,3411.2,3411.1,5.8632]
[1718733303648,0.60320958,3411.3,3411.2,2.93151]
[1718733303973,0.60320958,3411.3,3411.2,5.86302]
[1718733304184,0.60320958,3411.7,3411.6,2.93117]
[1718733304324,0.60320958,3411.7,3411.6,8.79351]
[1718733304521,0.90546605,3411.9,3411.3,2.103]
[1718733304522,0.60320958,3411.9,3411.8,2.931]
[1718733304853,0.07646589,3412.0,3411.9,2.93091]
[1718733305019,0.07646589,3412.1,3412.0,2.93083]
[1718733305320,0.98192978,3412.2,3412.1,2.9307]
[1718733305759,0.98192978,3412.2,3411.9,2.9309]
[1718733306083,0.60396914,3412.0,3411.7,2.931]
[1718733306246,0.60397269,3411.9,3411.7,2.931]
[1718733306446,0.60397269,3411.8,3411.7,2.931]
[1718733307353,0.90546605,3411.9,3411.8,2.931]
[1718733307982,0.90546605,3411.9,3411.8,9.672324]
[1718733307983,0.60418474,3411.9,3411.8,9.672324]
[1718733308185,0.90546605,3412.1,3411.8,3.810324]
[1718733308388,0.60438351,3412.0,3411.9,5.86182]
[1718733308586,0.90546605,3412.1,3411.8,2.931]
[1718733308587,0.07646958,3412.1,3412.0,2.93083]
[1718733308955,0.90665459,3412.1,3412.0,5.86166]
[1718733309353,0.07646958,3412.1,3412.0,5.86166]
[1718733309660,0.98380953,3412.3,3412.1,2.93074]
[1718733309873,0.60494562,3412.2,3412.1,5.86148]
[1718733310072,0.68140293,3412.2,3412.1,8.79222]
[1718733310288,0.07645731,3412.2,3412.1,9.9919584]
[1718733310489,0.68140293,3412.3,3412.2,5.86132]
[1718733310688,0.68140293,3412.3,3412.2,8.79198]
[1718733310887,0.60494562,3412.3,3412.2,8.79198]
[1718733311059,0.60494562,3412.3,3412.2,10.11166824]
[1718733311274,0.60494562,3412.3,3412.2,7.18100824]
[1718733311476,0.98379349,3412.4,3412.3,5.86114]
[1718733311698,0.98379553,3412.4,3412.3,2.93057]
[1718733312002,0.47134016,3412.4,3412.3,2.93057]
[1718733312605,0.47134016,3412.4,3412.3,5.86114]
[1718733312912,0.47149813,3412.4,3412.3,5.86114]
[1718733313770,0.47149813,3412.4,3412.3,2.93057]
[1718733313970,0.9844536,3412.4,3412.3,5.86114]
[1718733314701,0.9844536,3412.4,3412.3,9.903472]
[1718733314902,0.9844536,3412.4,3412.3,10.453472]
[1718733314903,0.60519797,3412.4,3412.3,10.453472]
[1718733315101,0.07645558,3412.5,3412.4,8.79144]
[1718733315400,0.07645558,3412.5,3412.4,5.86096]
[1718733315604,1.20572008,3412.7,3412.4,2.93048]
[1718733315804,1.20572008,3412.7,3412.5,8.7912]
[1718733315805,0.98396051,3412.6,3412.5,8.7912]
[1718733315974,0.98370858,3412.6,3412.5,8.7912]
[1718733317397,0.9072603,3412.6,3412.5,8.7912]
[1718733317602,0.98370858,3412.6,3412.5,8.7912]
[1718733317803,0.9072603,3412.6,3412.5,8.7912]
[1718733318103,0.98370858,3412.6,3412.5,8.7912]
[1718733318480,0.9072603,3412.6,3412.5,8.7912]
[1718733318680,0.98370858,3412.6,3412.5,9.73177242]
[1718733318884,0.9072603,3412.6,3412.5,9.73177242]
[1718733319193,0.98370858,3412.6,3412.5,9.73177242]
[1718733319368,0.9072603,3412.6,3412.5,9.73177242]
[1718733319574,0.98370858,3412.6,3412.5,9.73177242]
[1718733319806,0.9072603,3412.6,3412.5,9.73177242]
[1718733319972,0.98370858,3412.6,3412.5,9.73177242]
[1718733320169,0.9072603,3412.6,3412.5,9.73177242]
[1718733320372,0.98370858,3412.6,3412.5,6.80137242]
[1718733320593,0.9072603,3412.6,3412.5,6.80137242]
[1718733320902,0.07644828,3412.6,3412.5,6.80137242]
[1718733321118,0.98304391,3412.6,3412.5,6.80137242]
[1718733321476,0.98297609,3412.6,3412.5,6.80137242]
[1718733322874,0.90652781,3412.6,3412.5,6.80137242]
[1718733323085,0.98297609,3412.6,3412.5,6.80137242]
[1718733323322,0.07644828,3412.6,3412.5,6.80137242]
[1718733323537,0.98297609,3412.7,3412.6,5.86062]
[1718733323689,0.90652781,3412.8,3412.7,5.86046]
[1718733323890,0.9829733,3412.8,3412.7,5.86046]
[1718733324094,0.90652781,3412.8,3412.7,5.86046]
[1718733324276,0.90652781,3412.9,3412.8,2.93014]
[1718733324478,0.98297216,3412.9,3412.8,2.93014]
[1718733324713,0.98297216,3412.9,3412.8,6.84280917]
[1718733324873,0.98297216,3412.9,3412.8,15.15558917]
[1718733324874,0.07644435,3412.9,3412.8,15.15558917]
[1718733325211,0.60411692,3413.1,3413.0,8.78991]
[1718733325374,0.60411692,3413.1,3413.0,10.91041792]
[1718733325576,0.07643216,3413.2,3413.1,2.92988]
[1718733325787,0.68054908,3413.3,3413.2,5.8596]
[1718733326013,0.60411692,3413.3,3413.2,5.8596]
[1718733326203,0.60411692,3413.3,3413.2,8.7894]
[1718733326401,0.60411692,3413.4,3413.3,5.85942]
[1718733326722,0.68054908,3413.4,3413.3,5.85942]
[1718733326879,0.60411692,3413.4,3413.3,5.85942]
[1718733328291,0.60411692,3413.5,3413.4,5.85926]
[1718733328477,0.68054889,3413.5,3413.4,5.85926]
[1718733328680,0.60411692,3413.5,3413.4,5.85926]
[1718733329215,0.90652781,3413.6,3413.5,2.92954]
[1718733329418,0.07643156,3413.6,3413.5,2.92954]
[1718733329588,0.90652781,3413.7,3413.5,2.92954]
[1718733330293,0.98295937,3413.7,3413.4,2.92955]
[1718733330495,0.60369714,3413.5,3413.4,2.92955]
[1718733331227,0.60369714,3413.5,3413.0,2.92991]
[1718733331427,0.60369714,3413.4,3413.0,2.92991]
[1718733331738,0.07643156,3413.4,3413.3,5.85942]
[1718733331897,0.60369714,3413.5,3413.4,5.85926]
[1718733331898,0.68012882,3413.5,3413.4,5.85926]
[1718733332297,0.60377604,3413.6,3413.5,2.92954]
[1718733332733,0.60377604,3413.6,3413.5,5.85908]
[1718733333027,0.07642972,3413.6,3413.5,5.85908]
[1718733333226,0.98295753,3413.8,3413.6,2.92945]
[1718733333431,0.6035786,3413.7,3413.6,2.92945]
[1718733333634,0.6035786,3413.7,3413.6,5.8589]
[1718733333929,0.07642983,3413.7,3413.6,5.8589]
[1718733334133,0.68000843,3413.8,3413.7,2.92937]
[1718733336008,0.68000843,3413.8,3413.7,5.85874]
[1718733336212,0.68000843,3413.8,3413.7,6.444631]
[1718733336416,0.6035786,3413.9,3413.8,5.85856]
[1718733336824,0.67972591,3414.0,3413.9,2.9292]
[1718733337024,0.60329941,3414.0,3413.9,2.9292]
[1718733337227,0.90652781,3414.1,3413.9,2.9292]
[1718733337403,0.60322149,3414.1,3414.0,2.92911]
[1718733337726,0.67963659,3414.1,3414.0,2.92911]
[1718733337914,0.60321009,3414.1,3413.8,2.92922]
[1718733338119,0.60321009,3414.0,3413.8,2.92922]
[1718733338835,0.67963659,3414.0,3413.8,2.92922]
[1718733340338,2.9292,3413.9,3413.5,2.92948]
[1718733340640,0.07642826,3413.8,3413.6,2.92945]
[1718733341207,0.67963835,3413.8,3413.7,2.92937]
[1718733341419,0.67963835,3413.8,3413.6,2.92944]
[1718733341420,0.60321009,3413.8,3413.6,2.92944]
[1718733341620,0.60321009,3413.8,3413.2,2.92977]
[1718733341621,2.92948,3413.6,3413.2,2.92972]
[1718733341807,2.92948,3413.6,3413.1,2.92988]
[1718733342004,2.92948,3413.6,3413.3,2.92971]
[1718733342744,2.92954,3413.5,3413.3,2.92971]
[1718733342940,2.92965,3413.4,3413.1,2.92988]
[1718733343142,2.92965,3413.4,3413.0,2.92996]
[1718733343143,2.92972,3413.3,3413.0,2.92996]
[1718733343446,2.92972,3413.3,3413.0,5.85992]
[1718733343655,2.92972,3413.3,3413.0,2.92996]
[1718733343856,0.60321009,3413.4,3413.1,2.92986]
[1718733344064,0.60321009,3413.4,3413.3,2.92971]
[1718733344241,0.67964651,3413.5,3413.3,2.92971]
[1718733344571,3.60918651,3413.5,3413.2,2.92978]
[1718733344734,0.07643642,3413.4,3413.2,2.92978]
[1718733345261,0.07643642,3413.4,3413.3,3.6035769]
[1718733345567,0.67964467,3413.5,3413.4,2.92963]
[1718733345859,0.60321009,3413.6,3413.5,2.92954]
[1718733346873,0.67964215,3413.6,3413.5,2.92954]
[1718733347161,0.60321009,3413.6,3413.5,2.92954]
[1718733347320,0.60321009,3413.6,3413.5,5.85908]
[1718733347523,0.67964077,3413.6,3413.5,6.737951]
[1718733347727,0.60321009,3413.7,3413.6,5.8589]
[1718733347957,0.67963927,3413.7,3413.6,5.8589]
[1718733348269,0.60321009,3413.7,3413.6,5.8589]
[1718733348769,0.60321009,3413.9,3413.6,6.2220811]
[1718733348948,0.60321009,3413.9,3413.8,8.78784]
[1718733349133,1.50887174,3414.4,3413.8,8.78784]
[1718733349134,0.60321009,3414.3,3413.8,2.92928]
[1718733349331,7.97652781,3414.5,3414.0,2.92909]
[1718733349332,0.67962248,3414.4,3414.0,2.92909]
[1718733349534,0.67962248,3414.3,3414.0,2.92909]
[1718733349753,0.60321009,3414.3,3414.0,3.221999]
[1718733350078,0.60321009,3414.3,3414.2,2.92886]
[1718733350224,0.60321009,3414.3,3414.2,5.8578]
[1718733350432,0.90652781,3414.5,3414.3,2.92885]
[1718733350660,0.98293987,3414.5,3414.4,2.92877]
[1718733350852,0.90652781,3414.5,3414.4,2.92877]
[1718733351340,0.07641206,3414.5,3414.4,2.92877]
[1718733351536,0.90652781,3414.5,3414.3,2.92884]
[1718733351771,0.98293987,3414.5,3414.3,2.92884]
[1718733352072,2.92888,3414.3,3414.0,2.92905]
[1718733352249,0.68053454,3414.2,3414.1,2.92901]
[1718733352436,0.60411835,3414.2,3414.1,2.92901]
[1718733352637,0.60411835,3414.2,3414.1,5.85803]
[1718733353943,0.60411835,3414.2,3414.1,2.92901]
[1718733354246,0.90652781,3414.3,3414.1,2.92901]
[1718733354448,0.90652781,3414.3,3414.2,2.92894]
[1718733354799,0.90652781,3414.5,3414.3,2.92885]
[1718733354940,1.20572008,3414.6,3414.4,2.92877]
[1718733355246,1.28213238,3414.6,3414.4,2.92877]
[1718733355645,4.21074238,3414.6,3414.3,2.92883]
[1718733355851,0.90652591,3414.4,3414.3,2.92883]
[1718733357085,0.90652591,3414.4,3414.3,5.85768]
[1718733357394,0.98293821,3414.4,3414.3,5.85768]
[1718733357688,2.92887,3414.3,3414.0,2.92909]
[1718733357890,0.9066885,3414.1,3413.2,4.5423]
[1718733358187,0.60439595,3413.8,3413.7,2.92937]